[Event "*** Titled Tuesday Blitz"]
[Site "Chess.com"]
[Date "2018.07.03"]
[Round "2"]
[White "PaulfromSPb"]
[Black "Genghis_K"]
[Result "1/2-1/2"]
[WhiteElo "2509"]
[BlackElo "2706"]
[TimeControl "180+2"]
[EndTime "13:27:04 PDT"]
[Termination "Game drawn by agreement"]

1. d4 {[%clk 0:03:01.9]} 1... Nf6 {[%clk 0:03:00.6]} 2. Bg5 {[%clk 0:03:02.5]}
2... c5 {[%clk 0:02:59.3]} 3. d5 {[%clk 0:03:02.4]} 3... Ne4 {[%clk 0:02:58.4]}
4. Bc1 {[%clk 0:03:02.6]} 4... e6 {[%clk 0:02:56.6]} 5. c4 {[%clk 0:02:57.7]}
5... Qa5+ {[%clk 0:02:56.6]} 6. Nd2 {[%clk 0:02:53.4]} 6... exd5 {[%clk
0:02:57.4]} 7. cxd5 {[%clk 0:02:53.9]} 7... Nf6 {[%clk 0:02:58.3]} 8. e4 {[%clk
0:02:41.8]} 8... d6 {[%clk 0:02:51.4]} 9. Bd3 {[%clk 0:02:37.2]} 9... Nbd7
{[%clk 0:02:49.2]} 10. Nf3 {[%clk 0:02:37.1]} 10... Be7 {[%clk 0:02:42.6]} 11.
O-O {[%clk 0:02:37.2]} 11... O-O {[%clk 0:02:44]} 12. Nc4 {[%clk 0:02:37.2]}
12... Qd8 {[%clk 0:02:45.5]} 13. Bf4 {[%clk 0:02:36.2]} 13... Ne8 {[%clk
0:02:43.6]} 14. a4 {[%clk 0:02:35.6]} 14... b6 {[%clk 0:02:44.9]} 15. e5 {[%clk
0:02:30]} 15... dxe5 {[%clk 0:02:31.9]} 16. Nfxe5 {[%clk 0:02:31.1]} 16... Nxe5
{[%clk 0:02:33.4]} 17. Nxe5 {[%clk 0:02:28]} 17... Bd6 {[%clk 0:02:31.6]} 18.
Qh5 {[%clk 0:02:10.8]} 18... Nf6 {[%clk 0:02:30]} 19. Qh4 {[%clk 0:02:08.1]}
19... Bxe5 {[%clk 0:02:04.8]} 20. Bxe5 {[%clk 0:02:08.8]} 20... Qxd5 {[%clk
0:02:06.2]} 21. Bxf6 {[%clk 0:01:29.9]} 21... Qxd3 {[%clk 0:02:05.4]} 22. Rad1
{[%clk 0:01:26.4]} 22... Qg6 {[%clk 0:02:01.4]} 23. Be7 {[%clk 0:01:25.5]} 23...
Bb7 {[%clk 0:02:01]} 24. f3 {[%clk 0:01:22.4]} 24... Rfe8 {[%clk 0:01:59.7]} 25.
Rd7 {[%clk 0:01:23.2]} 25... Bc6 {[%clk 0:01:44.7]} 26. Rc7 {[%clk 0:01:24.2]}
26... h6 {[%clk 0:01:44.7]} 27. h3 {[%clk 0:01:21]} 27... Rec8 {[%clk 0:01:38]}
28. Qf4 {[%clk 0:01:14.7]} 28... Rxc7 {[%clk 0:01:29.5]} 29. Qxc7 {[%clk
0:01:15.6]} 29... Bxa4 {[%clk 0:01:30.9]} 30. Ra1 {[%clk 0:01:16.6]} 30... Qc6
{[%clk 0:01:30.9]} 31. Qf4 {[%clk 0:01:12.6]} 31... Bc2 {[%clk 0:01:24.4]} 32.
Rxa7 {[%clk 0:01:08.5]} 32... Rxa7 {[%clk 0:01:15.1]} 33. Qb8+ {[%clk
0:01:09.4]} 33... Kh7 {[%clk 0:01:15.1]} 34. Qxa7 {[%clk 0:01:10.5]} 34... Bg6
{[%clk 0:01:07.1]} 35. Bd8 {[%clk 0:01:01.3]} 35... b5 {[%clk 0:01:06.8]} 36.
Bb6 {[%clk 0:01:01.8]} 36... c4 {[%clk 0:01:07.2]} 37. Bd4 {[%clk 0:01:02.6]}
37... f6 {[%clk 0:00:53.1]} 38. Bc3 {[%clk 0:00:58.1]} 38... Qd6 {[%clk
0:00:48.6]} 39. Qd4 {[%clk 0:00:57.7]} 39... Qe6 {[%clk 0:00:46.7]} 40. Qc5
{[%clk 0:00:57.1]} 40... Be8 {[%clk 0:00:47.7]} 41. Kh2 {[%clk 0:00:57.2]} 41...
Bd7 {[%clk 0:00:43.7]} 42. Qd4 {[%clk 0:00:57.5]} 42... Kg6 {[%clk 0:00:42.1]}
43. Qf4 {[%clk 0:00:53.5]} 43... Kf7 {[%clk 0:00:42.8]} 44. Qc7 {[%clk
0:00:53.8]} 44... Qd5 {[%clk 0:00:43.5]} 45. Bb4 {[%clk 0:00:52.1]} 45... h5
{[%clk 0:00:40.7]} 46. Qc5 {[%clk 0:00:51.4]} 46... Qxc5 {[%clk 0:00:31.7]} 47.
Bxc5 {[%clk 0:00:52.2]} 47... Ke6 {[%clk 0:00:33.6]} 48. Kg3 {[%clk 0:00:51.3]}
48... Kd5 {[%clk 0:00:34.7]} 49. Bb4 {[%clk 0:00:50.6]} 49... Kd4 {[%clk
0:00:33.2]} 50. Kf2 {[%clk 0:00:51]} 50... Kd3 {[%clk 0:00:34.5]} 51. Ke1 {[%clk
0:00:42.9]} 51... Kc2 {[%clk 0:00:32.5]} 52. Bc3 {[%clk 0:00:43.7]} 52... Bc6
{[%clk 0:00:30.9]} 53. h4 {[%clk 0:00:44]} 53... Bd5 {[%clk 0:00:28.7]} 54. Ke2
{[%clk 0:00:45]} 54... Kb3 {[%clk 0:00:27.4]} 55. Kd2 {[%clk 0:00:45.2]} 55...
Bc6 {[%clk 0:00:17.3]} 56. Bd4 {[%clk 0:00:44.9]} 56... Bb7 {[%clk 0:00:18.3]}
57. Bc3 {[%clk 0:00:45.9]} 57... Bc8 {[%clk 0:00:19.1]} 58. Bd4 {[%clk 0:00:47]}
58... Bf5 {[%clk 0:00:20.4]} 59. g3 {[%clk 0:00:47.1]} 59... Be6 {[%clk
0:00:20.4]} 60. f4 {[%clk 0:00:48.1]} 60... Bf5 {[%clk 0:00:21.4]} 61. Bc3
{[%clk 0:00:49.1]} 61... Be4 {[%clk 0:00:13.9]} 62. Bd4 {[%clk 0:00:50.1]} 62...
Bd5 {[%clk 0:00:15]} 63. Bc3 {[%clk 0:00:51.1]} 63... Bc6 {[%clk 0:00:16.6]} 64.
Bd4 {[%clk 0:00:52.3]} 64... Bb7 {[%clk 0:00:18.1]} 65. Bc3 {[%clk 0:00:53.4]}
65... Bc8 {[%clk 0:00:19.8]} 66. Bd4 {[%clk 0:00:54.6]} 66... Bd7 {[%clk
0:00:21.4]} 67. Bc3 {[%clk 0:00:55.4]} 67... Be6 {[%clk 0:00:22.8]} 68. Bd4
{[%clk 0:00:56.5]} 68... b4 {[%clk 0:00:23.7]} 69. Bc5 {[%clk 0:00:41]} 69...
c3+ {[%clk 0:00:20.4]} 70. bxc3 {[%clk 0:00:42]} 70... bxc3+ {[%clk 0:00:21.9]}
71. Kc1 {[%clk 0:00:37.6]} 71... Kc4 {[%clk 0:00:15.3]} 72. Bf8 {[%clk
0:00:38.6]} 72... g6 {[%clk 0:00:16.3]} 73. Bg7 {[%clk 0:00:39.5]} 73... Bf5
{[%clk 0:00:07.9]} 74. Bxf6 {[%clk 0:00:39.5]} 74... Kd3 {[%clk 0:00:09.4]} 75.
Bg7 {[%clk 0:00:39.8]} 75... c2 {[%clk 0:00:07.3]} 76. Bf6 {[%clk 0:00:40.7]}
76... Ke2 {[%clk 0:00:08.5]} 77. Be7 {[%clk 0:00:41]} 77... Kf3 {[%clk
0:00:09.9]} 78. Bf6 {[%clk 0:00:41.9]} 78... Kxg3 {[%clk 0:00:10.9]} 79. Bg5
{[%clk 0:00:43.1]} 79... Kf3 {[%clk 0:00:12.5]} 80. Kd2 {[%clk 0:00:44.2]} 80...
Kf2 {[%clk 0:00:13.3]} 81. Bf6 {[%clk 0:00:44.6]} 81... Kg3 {[%clk 0:00:14.8]}
82. Bg5 {[%clk 0:00:45.7]} 82... Kg4 {[%clk 0:00:16.4]} 83. Kc1 {[%clk
0:00:46.8]} 83... Kf3 {[%clk 0:00:18.1]} 84. Kd2 {[%clk 0:00:48]} 84... Be4
{[%clk 0:00:18.4]} 85. Kc1 {[%clk 0:00:48.8]} 85... Kg4 {[%clk 0:00:20]} 86. Kd2
{[%clk 0:00:49.1]} 86... Kf5 {[%clk 0:00:21.6]} 87. Kc1 {[%clk 0:00:50]} 87...
Ke6 {[%clk 0:00:23.2]} 88. Kd2 {[%clk 0:00:51.3]} 88... Kd5 {[%clk 0:00:24.8]}
89. Kc1 {[%clk 0:00:52.9]} 89... Kc4 {[%clk 0:00:26.4]} 90. Kd2 {[%clk
0:00:54.8]} 90... Kb3 {[%clk 0:00:27.8]} 91. Kc1 {[%clk 0:00:56.5]} 91... Bf5
{[%clk 0:00:29.1]} 92. Bf6 {[%clk 0:00:57.8]} 92... Kc4 {[%clk 0:00:30.3]} 93.
Bg5 {[%clk 0:00:59.7]} 93... Kd3 {[%clk 0:00:31.8]} 94. Bf6 {[%clk 0:01:01.6]}
94... Ke2 {[%clk 0:00:32.2]} 95. Bg5 {[%clk 0:01:03.5]} 95... Ke3 {[%clk
0:00:33.8]} 96. Bh6 {[%clk 0:01:03.5]} 1/2-1/2

[Event "*** Titled Tuesday Blitz"]
[Site "Chess.com"]
[Date "2018.07.03"]
[Round "2"]
[White "Passacaglia23"]
[Black "MrRooke6"]
[Result "1-0"]
[WhiteElo "2309"]
[BlackElo "2418"]
[TimeControl "180+2"]
[EndTime "13:27:22 PDT"]
[Termination "Passacaglia23 won by checkmate"]

1. d4 {[%clk 0:03:01.9]} 1... Nf6 {[%clk 0:02:59.7]} 2. c4 {[%clk 0:03:02.8]}
2... g6 {[%clk 0:03:00.9]} 3. f3 {[%clk 0:03:03.8]} 3... Nc6 {[%clk 0:02:57.9]}
4. d5 {[%clk 0:02:53]} 4... Ne5 {[%clk 0:02:57.8]} 5. e4 {[%clk 0:02:54.6]} 5...
d6 {[%clk 0:02:58.6]} 6. b3 {[%clk 0:02:37.4]} 6... Bg7 {[%clk 0:02:58.3]} 7.
Bb2 {[%clk 0:02:38.1]} 7... Nh5 {[%clk 0:02:56.1]} 8. Nc3 {[%clk 0:02:33.7]}
8... O-O {[%clk 0:02:54.7]} 9. Nge2 {[%clk 0:02:26.7]} 9... f5 {[%clk
0:02:48.9]} 10. Qc2 {[%clk 0:02:12]} 10... fxe4 {[%clk 0:02:47.5]} 11. Nxe4
{[%clk 0:02:10.4]} 11... e6 {[%clk 0:02:36.3]} 12. dxe6 {[%clk 0:01:38]} 12...
Bxe6 {[%clk 0:02:36.5]} 13. Nd4 {[%clk 0:01:39.2]} 13... Bd7 {[%clk 0:02:35.7]}
14. O-O-O {[%clk 0:01:40]} 14... a5 {[%clk 0:02:31.2]} 15. Kb1 {[%clk
0:01:39.4]} 15... a4 {[%clk 0:02:30.5]} 16. c5 {[%clk 0:01:19.5]} 16... d5
{[%clk 0:02:27.3]} 17. c6 {[%clk 0:01:14.4]} 17... bxc6 {[%clk 0:02:20.9]} 18.
Nc5 {[%clk 0:01:14.4]} 18... axb3 {[%clk 0:02:18.5]} 19. axb3 {[%clk 0:01:13.4]}
19... Qe7 {[%clk 0:02:10.2]} 20. Re1 {[%clk 0:01:01.4]} 20... Qf7 {[%clk
0:02:10.2]} 21. Be2 {[%clk 0:00:45.1]} 21... Nf4 {[%clk 0:02:10.2]} 22. Bd1
{[%clk 0:00:42.1]} 22... Rfe8 {[%clk 0:01:54.8]} 23. g3 {[%clk 0:00:38.3]} 23...
Nh5 {[%clk 0:01:53.3]} 24. Rhf1 {[%clk 0:00:32.8]} 24... Bh3 {[%clk 0:01:50.2]}
25. Rf2 {[%clk 0:00:33.8]} 25... Bf8 {[%clk 0:01:47.2]} 26. f4 {[%clk
0:00:31.7]} 26... Ng4 {[%clk 0:01:44.1]} 27. Rfe2 {[%clk 0:00:32.3]} 27... Ngf6
{[%clk 0:01:24.3]} 28. Nxc6 {[%clk 0:00:24.5]} 28... Bf5 {[%clk 0:01:24]} 29.
Nd3 {[%clk 0:00:25.7]} 29... Ne4 {[%clk 0:01:14.9]} 30. Nce5 {[%clk 0:00:21.5]}
30... Qe7 {[%clk 0:01:08.7]} 31. g4 {[%clk 0:00:22]} 31... Bxg4 {[%clk 0:00:51]}
32. Nxg4 {[%clk 0:00:23]} 32... c5 {[%clk 0:00:51.9]} 33. Nde5 {[%clk
0:00:12.6]} 33... Nxf4 {[%clk 0:00:49.5]} 34. Rxe4 {[%clk 0:00:11.8]} 34... dxe4
{[%clk 0:00:48.7]} 35. Qc4+ {[%clk 0:00:12.4]} 35... Ne6 {[%clk 0:00:45]} 36.
Nd7 {[%clk 0:00:10.5]} 36... Bg7 {[%clk 0:00:43.9]} 37. Ndf6+ {[%clk 0:00:10.7]}
37... Kh8 {[%clk 0:00:44]} 38. Nxe8 {[%clk 0:00:11.6]} 38... Rxe8 {[%clk
0:00:43.3]} 39. Rxe4 {[%clk 0:00:11]} 39... Bxb2 {[%clk 0:00:42.8]} 40. Kxb2
{[%clk 0:00:12.3]} 40... Qg7+ {[%clk 0:00:43.4]} 41. Qc3 {[%clk 0:00:12.6]}
41... Qxc3+ {[%clk 0:00:41.9]} 42. Kxc3 {[%clk 0:00:14.5]} 42... Kg7 {[%clk
0:00:42.4]} 43. Ne3 {[%clk 0:00:09.4]} 43... Kf7 {[%clk 0:00:41.5]} 44. Be2
{[%clk 0:00:08.4]} 44... Kf6 {[%clk 0:00:37.8]} 45. Ng4+ {[%clk 0:00:07.2]}
45... Kf5 {[%clk 0:00:36.7]} 46. Re5+ {[%clk 0:00:07.5]} 46... Kf4 {[%clk
0:00:37.4]} 47. h3 {[%clk 0:00:03.2]} 47... h5 {[%clk 0:00:36.5]} 48. Nf6 {[%clk
0:00:04.5]} 48... Kxe5 {[%clk 0:00:37.2]} 49. Nxe8 {[%clk 0:00:05.3]} 49... Nf4
{[%clk 0:00:38.7]} 50. Bf1 {[%clk 0:00:06.8]} 50... g5 {[%clk 0:00:39.7]} 51.
Kc4 {[%clk 0:00:07.8]} 51... g4 {[%clk 0:00:40]} 52. hxg4 {[%clk 0:00:08.9]}
52... hxg4 {[%clk 0:00:41.3]} 53. Kxc5 {[%clk 0:00:10.4]} 53... g3 {[%clk
0:00:42.9]} 54. b4 {[%clk 0:00:11.7]} 54... Ke4 {[%clk 0:00:44.2]} 55. b5 {[%clk
0:00:12.6]} 55... Ke3 {[%clk 0:00:45.7]} 56. b6 {[%clk 0:00:13.4]} 56... Kf2
{[%clk 0:00:47]} 57. b7 {[%clk 0:00:12.5]} 57... Kxf1 {[%clk 0:00:47.2]} 58.
b8=Q {[%clk 0:00:13.8]} 58... g2 {[%clk 0:00:47.5]} 59. Qxf4+ {[%clk 0:00:14.2]}
59... Ke2 {[%clk 0:00:48.1]} 60. Qg4+ {[%clk 0:00:13.8]} 60... Kf2 {[%clk
0:00:49.2]} 61. Qf4+ {[%clk 0:00:13.6]} 61... Ke2 {[%clk 0:00:50]} 62. Qe4+
{[%clk 0:00:13.6]} 62... Kf2 {[%clk 0:00:51]} 63. Qc2+ {[%clk 0:00:13.5]} 63...
Kf1 {[%clk 0:00:51.7]} 64. Qd3+ {[%clk 0:00:12.4]} 64... Kf2 {[%clk 0:00:52.8]}
65. Qd2+ {[%clk 0:00:13.4]} 65... Kf1 {[%clk 0:00:53.6]} 66. Qd1+ {[%clk
0:00:12.3]} 66... Kf2 {[%clk 0:00:54.8]} 67. Qd4+ {[%clk 0:00:10.2]} 67... Kf1
{[%clk 0:00:54.7]} 68. Qf6+ {[%clk 0:00:09.7]} 68... Ke2 {[%clk 0:00:55.5]} 69.
Qg6 {[%clk 0:00:09]} 69... Kf2 {[%clk 0:00:56.1]} 70. Qf5+ {[%clk 0:00:09.9]}
70... Ke2 {[%clk 0:00:57]} 71. Qg4+ {[%clk 0:00:08.9]} 71... Kf2 {[%clk
0:00:57.8]} 72. Qf4+ {[%clk 0:00:09.6]} 72... Ke2 {[%clk 0:00:58.8]} 73. Qg3
{[%clk 0:00:10.2]} 73... Kf1 {[%clk 0:00:59.6]} 74. Qf3+ {[%clk 0:00:11.4]}
74... Kg1 {[%clk 0:01:01]} 75. Nf6 {[%clk 0:00:10.1]} 75... Kh1 {[%clk 0:00:46]}
76. Nh5 {[%clk 0:00:04.1]} 76... Kh2 {[%clk 0:00:45.4]} 77. Qg3+ {[%clk
0:00:05.1]} 77... Kh1 {[%clk 0:00:44.7]} 78. Qh3+ {[%clk 0:00:05.8]} 78... Kg1
{[%clk 0:00:45]} 79. Nf4 {[%clk 0:00:07.2]} 79... Kf2 {[%clk 0:00:46]} 80. Qxg2+
{[%clk 0:00:08.5]} 80... Ke3 {[%clk 0:00:46.9]} 81. Nd5+ {[%clk 0:00:08.7]}
81... Kd3 {[%clk 0:00:46.9]} 82. Qf3+ {[%clk 0:00:09.8]} 82... Kd2 {[%clk
0:00:47.6]} 83. Qe3+ {[%clk 0:00:10.9]} 83... Kc2 {[%clk 0:00:47.9]} 84. Kc4
{[%clk 0:00:11.8]} 84... Kb2 {[%clk 0:00:47.1]} 85. Qc3+ {[%clk 0:00:12.2]}
85... Kb1 {[%clk 0:00:48.2]} 86. Qd2 {[%clk 0:00:13.3]} 86... Ka1 {[%clk
0:00:49.1]} 87. Kb3 {[%clk 0:00:14.1]} 87... Kb1 {[%clk 0:00:50]} 88. Qb2#
{[%clk 0:00:16]} 1-0

[Event "*** Titled Tuesday Blitz"]
[Site "Chess.com"]
[Date "2018.07.03"]
[Round "3"]
[White "Roachelley"]
[Black "GMMatamoros"]
[Result "0-1"]
[WhiteElo "2311"]
[BlackElo "2521"]
[TimeControl "180+2"]
[EndTime "13:31:47 PDT"]
[Termination "GMMatamoros won by resignation"]

1. d4 {[%clk 0:02:59.3]} 1... e6 {[%clk 0:02:56.3]} 2. c4 {[%clk 0:03:00.1]}
2... Bb4+ {[%clk 0:02:55.5]} 3. Nc3 {[%clk 0:03:01]} 3... c5 {[%clk 0:02:55.6]}
4. dxc5 {[%clk 0:02:59.3]} 4... Nf6 {[%clk 0:02:50.4]} 5. Qc2 {[%clk 0:02:57.4]}
5... Bxc5 {[%clk 0:02:48.5]} 6. Nf3 {[%clk 0:02:57.5]} 6... b6 {[%clk 0:02:48]}
7. Bg5 {[%clk 0:02:57.9]} 7... h6 {[%clk 0:02:48.2]} 8. Bh4 {[%clk 0:02:57.3]}
8... Bb7 {[%clk 0:02:43.3]} 9. e3 {[%clk 0:02:55.5]} 9... Be7 {[%clk 0:02:42.9]}
10. Be2 {[%clk 0:02:52.7]} 10... d6 {[%clk 0:02:42.4]} 11. O-O {[%clk
0:02:52.4]} 11... a6 {[%clk 0:02:43.3]} 12. Rad1 {[%clk 0:02:52.6]} 12... Nbd7
{[%clk 0:02:44.2]} 13. h3 {[%clk 0:02:53.6]} 13... O-O {[%clk 0:02:40.7]} 14.
Bg3 {[%clk 0:02:54.3]} 14... Qc7 {[%clk 0:02:41.5]} 15. Rd4 {[%clk 0:02:48.2]}
15... Rfc8 {[%clk 0:02:15.1]} 16. Rfd1 {[%clk 0:02:46.3]} 16... e5 {[%clk
0:02:15.5]} 17. R4d2 {[%clk 0:02:45.7]} 17... Nc5 {[%clk 0:02:15.7]} 18. Nd5
{[%clk 0:02:22.2]} 18... Bxd5 {[%clk 0:02:13.2]} 19. cxd5 {[%clk 0:02:24.1]}
19... Nfe4 {[%clk 0:02:03.5]} 20. b4 {[%clk 0:02:07.1]} 20... Nxd2 {[%clk
0:02:02.9]} 21. Rxd2 {[%clk 0:02:08.9]} 21... Nd7 {[%clk 0:02:02.7]} 22. Qa4
{[%clk 0:02:06.3]} 22... b5 {[%clk 0:01:58.9]} 23. Qb3 {[%clk 0:02:02.1]} 23...
Qc3 {[%clk 0:01:54]} 0-1

[Event "*** Titled Tuesday Blitz"]
[Site "Chess.com"]
[Date "2018.07.03"]
[Round "3"]
[White "Korchmar_Vasiliy"]
[Black "volodja49"]
[Result "1-0"]
[WhiteElo "2686"]
[BlackElo "2464"]
[TimeControl "180+2"]
[EndTime "13:31:49 PDT"]
[Termination "Korchmar_Vasiliy won by resignation"]

1. d4 {[%clk 0:02:59.1]} 1... d5 {[%clk 0:03:00.6]} 2. c4 {[%clk 0:03:00.5]}
2... e6 {[%clk 0:03:02]} 3. Nf3 {[%clk 0:03:00.9]} 3... Nf6 {[%clk 0:03:02.9]}
4. g3 {[%clk 0:03:02.1]} 4... dxc4 {[%clk 0:03:04.3]} 5. Bg2 {[%clk 0:03:02.7]}
5... b5 {[%clk 0:03:04.7]} 6. a4 {[%clk 0:03:00.9]} 6... c6 {[%clk 0:03:04.5]}
7. Ne5 {[%clk 0:02:57.7]} 7... Nd5 {[%clk 0:03:04.9]} 8. O-O {[%clk 0:02:58.4]}
8... Bb7 {[%clk 0:03:05.6]} 9. e4 {[%clk 0:02:53.9]} 9... Nf6 {[%clk 0:02:53.8]}
10. Nc3 {[%clk 0:02:55.2]} 10... a6 {[%clk 0:02:53.7]} 11. d5 {[%clk 0:02:53.2]}
11... Bb4 {[%clk 0:01:35.4]} 12. dxe6 {[%clk 0:02:47.9]} 12... Qxd1 {[%clk
0:01:18.2]} 13. exf7+ {[%clk 0:02:48.4]} 13... Ke7 {[%clk 0:01:19.5]} 14. Rxd1
{[%clk 0:02:50]} 14... Nbd7 {[%clk 0:01:12.4]} 15. Nxd7 {[%clk 0:02:43.4]} 15...
Nxd7 {[%clk 0:01:05]} 16. Bg5+ {[%clk 0:02:44.6]} 1-0

[Event "*** Titled Tuesday Blitz"]
[Site "Chess.com"]
[Date "2018.07.03"]
[Round "3"]
[White "Spring199"]
[Black "Art10ECHR"]
[Result "1-0"]
[WhiteElo "2183"]
[BlackElo "2299"]
[TimeControl "180+2"]
[EndTime "13:32:13 PDT"]
[Termination "Spring199 won by checkmate"]

1. d4 {[%clk 0:03:01.9]} 1... d5 {[%clk 0:02:59.5]} 2. Bf4 {[%clk 0:03:00.6]}
2... Nf6 {[%clk 0:03:00.2]} 3. e3 {[%clk 0:03:01.8]} 3... c5 {[%clk 0:03:01.2]}
4. Nd2 {[%clk 0:03:02.7]} 4... Nc6 {[%clk 0:03:01.4]} 5. c3 {[%clk 0:03:03.8]}
5... e6 {[%clk 0:03:01.8]} 6. Ngf3 {[%clk 0:03:03.6]} 6... Bd6 {[%clk
0:03:02.8]} 7. Bg3 {[%clk 0:03:03.9]} 7... O-O {[%clk 0:03:03.8]} 8. Bd3 {[%clk
0:03:05.1]} 8... b6 {[%clk 0:03:04.9]} 9. Ne5 {[%clk 0:03:04.2]} 9... Bb7 {[%clk
0:03:05.7]} 10. O-O {[%clk 0:03:04.5]} 10... Ne7 {[%clk 0:03:06.6]} 11. f4
{[%clk 0:03:04.9]} 11... Nf5 {[%clk 0:03:04.2]} 12. Bf2 {[%clk 0:03:05.4]} 12...
Be7 {[%clk 0:03:04.5]} 13. g4 {[%clk 0:02:58.5]} 13... Nd6 {[%clk 0:03:04.9]}
14. Qf3 {[%clk 0:02:51.7]} 14... Nfe4 {[%clk 0:03:05.7]} 15. Qh3 {[%clk
0:02:26.8]} 15... f6 {[%clk 0:02:37.2]} 16. Nef3 {[%clk 0:02:19.9]} 16... Rc8
{[%clk 0:02:31.9]} 17. Rad1 {[%clk 0:02:04.2]} 17... cxd4 {[%clk 0:02:23.7]} 18.
exd4 {[%clk 0:02:03.8]} 18... b5 {[%clk 0:02:21.1]} 19. a3 {[%clk 0:01:52.9]}
19... a5 {[%clk 0:02:21.5]} 20. Nb3 {[%clk 0:01:50.6]} 20... b4 {[%clk 0:02:13]}
21. axb4 {[%clk 0:01:50.4]} 21... axb4 {[%clk 0:02:14.1]} 22. Nc5 {[%clk
0:01:51.3]} 22... Nxc5 {[%clk 0:01:44.4]} 23. Qxh7+ {[%clk 0:01:48.8]} 23... Kf7
{[%clk 0:01:43.2]} 24. Bg6# {[%clk 0:01:50.2]} 1-0

[Event "*** Titled Tuesday Blitz"]
[Site "Chess.com"]
[Date "2018.07.03"]
[Round "3"]
[White "jk13"]
[Black "ozates"]
[Result "1-0"]
[WhiteElo "2562"]
[BlackElo "2335"]
[TimeControl "180+2"]
[EndTime "13:32:22 PDT"]
[Termination "jk13 won by checkmate"]

1. e4 {[%clk 0:03:01.9]} 1... c5 {[%clk 0:03:00.4]} 2. c3 {[%clk 0:03:03.1]}
2... d5 {[%clk 0:02:59.8]} 3. exd5 {[%clk 0:03:04.5]} 3... Qxd5 {[%clk
0:03:01.7]} 4. d4 {[%clk 0:03:06.2]} 4... g6 {[%clk 0:03:01.1]} 5. Nf3 {[%clk
0:03:08.1]} 5... Bg7 {[%clk 0:03:01.1]} 6. Na3 {[%clk 0:03:10]} 6... cxd4 {[%clk
0:03:02]} 7. Nb5 {[%clk 0:03:09.5]} 7... Qd8 {[%clk 0:03:02.6]} 8. Bf4 {[%clk
0:03:04.9]} 8... Na6 {[%clk 0:03:01.8]} 9. Bc4 {[%clk 0:02:56.9]} 9... Nf6
{[%clk 0:02:59.7]} 10. Qxd4 {[%clk 0:02:54.7]} 10... Qxd4 {[%clk 0:03:00]} 11.
Nbxd4 {[%clk 0:02:55.4]} 11... O-O {[%clk 0:02:58]} 12. O-O-O {[%clk 0:02:55.9]}
12... Nc5 {[%clk 0:02:55]} 13. Rhe1 {[%clk 0:02:56.9]} 13... Nce4 {[%clk
0:02:44]} 14. Re2 {[%clk 0:02:39.2]} 14... Bd7 {[%clk 0:02:37.8]} 15. Ne5 {[%clk
0:02:37]} 15... Nd6 {[%clk 0:02:30.6]} 16. Nxd7 {[%clk 0:02:30.6]} 16... Nxd7
{[%clk 0:02:32.5]} 17. Bb3 {[%clk 0:02:25.5]} 17... e5 {[%clk 0:02:31.3]} 18.
Nf3 {[%clk 0:02:07.7]} 18... exf4 {[%clk 0:02:29.2]} 19. Rxd6 {[%clk 0:02:08.4]}
19... Nc5 {[%clk 0:02:30.6]} 20. Re7 {[%clk 0:02:04.3]} 20... Rfd8 {[%clk
0:02:10.5]} 21. Rxd8+ {[%clk 0:01:53.8]} 21... Rxd8 {[%clk 0:02:06.9]} 22. Bxf7+
{[%clk 0:01:49]} 22... Kf8 {[%clk 0:02:07]} 23. Rc7 {[%clk 0:01:50.9]} 23...
Nd3+ {[%clk 0:02:07.3]} 24. Kc2 {[%clk 0:01:51.5]} 24... Nxf2 {[%clk 0:01:53.9]}
25. Ng5 {[%clk 0:01:51.4]} 25... Be5 {[%clk 0:01:48.6]} 26. Ne6# {[%clk
0:01:51.5]} 1-0

[Event "*** Titled Tuesday Blitz"]
[Site "Chess.com"]
[Date "2018.07.03"]
[Round "3"]
[White "AndrewDGreen"]
[Black "PowerThinking2650"]
[Result "1-0"]
[WhiteElo "2186"]
[BlackElo "2297"]
[TimeControl "180+2"]
[EndTime "13:32:38 PDT"]
[Termination "AndrewDGreen won by resignation"]

1. d4 {[%clk 0:03:01.9]} 1... Nf6 {[%clk 0:03:00.4]} 2. Nf3 {[%clk 0:03:02.9]}
2... g6 {[%clk 0:03:01.3]} 3. Nc3 {[%clk 0:03:03.3]} 3... d5 {[%clk 0:03:01.2]}
4. Bf4 {[%clk 0:03:04.6]} 4... Bg7 {[%clk 0:03:02.7]} 5. e3 {[%clk 0:03:06.1]}
5... O-O {[%clk 0:03:01]} 6. Be2 {[%clk 0:03:07.1]} 6... c5 {[%clk 0:03:01.5]}
7. O-O {[%clk 0:03:07.9]} 7... cxd4 {[%clk 0:03:02.1]} 8. exd4 {[%clk
0:03:09.8]} 8... Nc6 {[%clk 0:03:03.4]} 9. Ne5 {[%clk 0:03:10.3]} 9... Be6
{[%clk 0:03:00.7]} 10. Nxc6 {[%clk 0:03:08.8]} 10... bxc6 {[%clk 0:03:02.6]} 11.
Na4 {[%clk 0:03:08.9]} 11... Nd7 {[%clk 0:03:03]} 12. c3 {[%clk 0:03:06.6]}
12... a5 {[%clk 0:03:00.7]} 13. Re1 {[%clk 0:03:04.8]} 13... Rc8 {[%clk
0:02:58.9]} 14. b4 {[%clk 0:02:51.4]} 14... axb4 {[%clk 0:02:55.3]} 15. cxb4
{[%clk 0:02:53.3]} 15... Bf5 {[%clk 0:02:51.9]} 16. Ba6 {[%clk 0:02:39.7]} 16...
Rb8 {[%clk 0:02:41.7]} 17. Bxb8 {[%clk 0:02:39.3]} 17... Nxb8 {[%clk 0:02:27.9]}
18. Bf1 {[%clk 0:02:22.5]} 18... Nd7 {[%clk 0:02:28.1]} 19. Nc5 {[%clk
0:02:15.5]} 19... Nxc5 {[%clk 0:02:24.9]} 20. bxc5 {[%clk 0:02:17.4]} 20... Qc7
{[%clk 0:02:24.6]} 21. g3 {[%clk 0:02:14]} 21... e5 {[%clk 0:02:25.2]} 22. a4
{[%clk 0:01:57.8]} 1-0

[Event "*** Titled Tuesday Blitz"]
[Site "Chess.com"]
[Date "2018.07.03"]
[Round "3"]
[White "VerdeNotte"]
[Black "ENEASZ"]
[Result "1-0"]
[WhiteElo "2587"]
[BlackElo "2503"]
[TimeControl "180+2"]
[EndTime "13:32:58 PDT"]
[Termination "VerdeNotte won by resignation"]

1. Nf3 {[%clk 0:03:01.9]} 1... Nf6 {[%clk 0:03:00.4]} 2. c4 {[%clk 0:03:01.2]}
2... e6 {[%clk 0:03:00.5]} 3. g3 {[%clk 0:03:01.2]} 3... d5 {[%clk 0:03:02.2]}
4. Bg2 {[%clk 0:03:02.2]} 4... Be7 {[%clk 0:03:03.8]} 5. O-O {[%clk 0:03:02.9]}
5... O-O {[%clk 0:03:05.4]} 6. b3 {[%clk 0:03:03.1]} 6... b6 {[%clk 0:03:01.7]}
7. Bb2 {[%clk 0:03:03.1]} 7... Bb7 {[%clk 0:03:03]} 8. e3 {[%clk 0:02:55.2]}
8... c5 {[%clk 0:03:01.9]} 9. Nc3 {[%clk 0:02:52.6]} 9... Nbd7 {[%clk
0:02:55.1]} 10. d4 {[%clk 0:02:40.8]} 10... cxd4 {[%clk 0:02:54.7]} 11. Nxd4
{[%clk 0:02:39.9]} 11... Bb4 {[%clk 0:02:23.5]} 12. Rc1 {[%clk 0:02:20.8]} 12...
Nc5 {[%clk 0:02:13.2]} 13. Qe2 {[%clk 0:02:05.7]} 13... Qe7 {[%clk 0:01:54.2]}
14. cxd5 {[%clk 0:01:58.2]} 14... Bxc3 {[%clk 0:01:48.1]} 15. Bxc3 {[%clk
0:01:56.7]} 15... Bxd5 {[%clk 0:01:47.2]} 16. Nc6 {[%clk 0:01:54.7]} 16... Bxc6
{[%clk 0:01:05.6]} 17. Bxc6 {[%clk 0:01:53.4]} 17... Rac8 {[%clk 0:01:06.8]} 18.
Bg2 {[%clk 0:01:51.2]} 18... Nce4 {[%clk 0:01:06.3]} 19. Bb2 {[%clk 0:01:50.4]}
19... Rfd8 {[%clk 0:01:05.9]} 20. Qa6 {[%clk 0:01:38.3]} 20... h5 {[%clk
0:00:58.6]} 21. Rxc8 {[%clk 0:01:37]} 1-0